[Event "Early-Titled-Tuesday-Blitz-May-07-2024"]
[Site "Chess.com"]
[Date "2024.05.07"]
[Round "7"]
[White "JJDAREK"]
[Black "RojonR"]
[Result "1-0"]
[WhiteElo "2393"]
[BlackElo "2531"]
[TimeControl "180+1"]
[EndTime "9:22:44 PDT"]
[Termination "JJDAREK won by resignation"]

1. d4 {[%clk 0:03:00.9]} 1... Nf6 {[%clk 0:02:37.9]} 2. c4 {[%clk 0:03:00.4]}
2... e6 {[%clk 0:02:32]} 3. Nf3 {[%clk 0:02:59.3]} 3... Bb4+ {[%clk 0:02:30.5]}
4. Nbd2 {[%clk 0:02:58.2]} 4... b6 {[%clk 0:02:28.4]} 5. a3 {[%clk 0:02:54.9]}
5... Bxd2+ {[%clk 0:02:27.3]} 6. Qxd2 {[%clk 0:02:53.6]} 6... Bb7 {[%clk
0:02:23.1]} 7. e3 {[%clk 0:02:53.5]} 7... O-O {[%clk 0:02:21.5]} 8. Be2 {[%clk
0:02:52.9]} 8... d6 {[%clk 0:02:21.5]} 9. b4 {[%clk 0:02:52]} 9... Nbd7 {[%clk
0:02:21.4]} 10. Bb2 {[%clk 0:02:51.5]} 10... Ne4 {[%clk 0:02:20.7]} 11. Qc2
{[%clk 0:02:51.2]} 11... f5 {[%clk 0:02:21]} 12. O-O {[%clk 0:02:48.3]} 12...
Rf6 {[%clk 0:02:15.1]} 13. Ne1 {[%clk 0:02:32.3]} 13... Rg6 {[%clk 0:02:00.9]}
14. f3 {[%clk 0:02:28.6]} 14... Ng5 {[%clk 0:01:53.2]} 15. Rd1 {[%clk
0:02:12.9]} 15... h6 {[%clk 0:01:38.4]} 16. d5 {[%clk 0:02:10.7]} 16... Qe7
{[%clk 0:01:27]} 17. e4 {[%clk 0:02:00.3]} 17... fxe4 {[%clk 0:01:14.9]} 18.
fxe4 {[%clk 0:02:01.2]} 18... e5 {[%clk 0:01:13.7]} 19. Bg4 {[%clk 0:01:39]}
19... Rf8 {[%clk 0:00:54.9]} 20. Rxf8+ {[%clk 0:01:34.4]} 20... Nxf8 {[%clk
0:00:35.2]} 21. Nf3 {[%clk 0:01:02.7]} 21... Nxf3+ {[%clk 0:00:31.1]} 22. Bxf3
{[%clk 0:01:03.6]} 22... Bc8 {[%clk 0:00:30.2]} 23. Qe2 {[%clk 0:01:00.1]} 23...
Nh7 {[%clk 0:00:28.4]} 24. Bh5 {[%clk 0:00:54.4]} 24... Rg5 {[%clk 0:00:26.5]}
25. Bc1 {[%clk 0:00:52.4]} 25... Rxh5 {[%clk 0:00:17.8]} 26. Qxh5 {[%clk
0:00:53.3]} 26... Nf6 {[%clk 0:00:18.2]} 27. Qg6 {[%clk 0:00:49.6]} 27... Qf7
{[%clk 0:00:17.4]} 28. Qxf7+ {[%clk 0:00:48.9]} 28... Kxf7 {[%clk 0:00:18.3]}
29. Re1 {[%clk 0:00:46.4]} 29... Ba6 {[%clk 0:00:17.8]} 30. b5 {[%clk
0:00:43.1]} 30... Bc8 {[%clk 0:00:18]} 31. h3 {[%clk 0:00:42.2]} 31... g5 {[%clk
0:00:17.4]} 32. g4 {[%clk 0:00:39.6]} 32... Kg6 {[%clk 0:00:17.5]} 33. Kf2
{[%clk 0:00:39.5]} 33... Bd7 {[%clk 0:00:17.9]} 34. Kg3 {[%clk 0:00:39.6]} 34...
Be8 {[%clk 0:00:17.8]} 35. a4 {[%clk 0:00:39.7]} 35... Bf7 {[%clk 0:00:17.5]}
36. a5 {[%clk 0:00:39.8]} 36... bxa5 {[%clk 0:00:16.1]} 37. Kf3 {[%clk
0:00:34.4]} 37... h5 {[%clk 0:00:15.3]} 38. Be3 {[%clk 0:00:33.1]} 38... Be8
{[%clk 0:00:15]} 39. Bxa7 {[%clk 0:00:31.5]} 39... hxg4+ {[%clk 0:00:14.5]} 40.
hxg4 {[%clk 0:00:31.3]} 40... Bd7 {[%clk 0:00:15.1]} 41. Rg1 {[%clk 0:00:30.9]}
41... a4 {[%clk 0:00:15]} 42. Be3 {[%clk 0:00:26]} 42... a3 {[%clk 0:00:14.2]}
43. Bc1 {[%clk 0:00:26.2]} 43... a2 {[%clk 0:00:14.4]} 44. Bb2 {[%clk
0:00:26.7]} 44... Bc8 {[%clk 0:00:14.5]} 45. Bc3 {[%clk 0:00:24.2]} 45... Bd7
{[%clk 0:00:14.4]} 46. Rg2 {[%clk 0:00:22.8]} 46... Bc8 {[%clk 0:00:11.2]} 47.
c5 {[%clk 0:00:20.1]} 47... dxc5 {[%clk 0:00:07.8]} 48. Bxe5 {[%clk 0:00:19.9]}
48... Nd7 {[%clk 0:00:07.2]} 49. Bc3 {[%clk 0:00:17.5]} 49... c4 {[%clk
0:00:05.1]} 50. Rxa2 {[%clk 0:00:17]} 50... Nc5 {[%clk 0:00:05.9]} 51. e5 {[%clk
0:00:15]} 51... Nd3 {[%clk 0:00:03.1]} 52. d6 {[%clk 0:00:12.8]} 52... Bb7+
{[%clk 0:00:03.4]} 53. Ke3 {[%clk 0:00:12.6]} 53... cxd6 {[%clk 0:00:03.8]} 54.
exd6 {[%clk 0:00:12.6]} 54... Nc5 {[%clk 0:00:04.7]} 55. Ra7 {[%clk 0:00:11.9]}
55... Bc8 {[%clk 0:00:04.5]} 56. Kd4 {[%clk 0:00:12.3]} 56... Ne6+ {[%clk
0:00:03.7]} 57. Kxc4 {[%clk 0:00:12.3]} 1-0

[Event "Early-Titled-Tuesday-Blitz-May-07-2024"]
[Site "Chess.com"]
[Date "2024.05.07"]
[Round "7"]
[White "tantaan"]
[Black "manitodeplomo"]
[Result "1-0"]
[WhiteElo "2494"]
[BlackElo "2598"]
[TimeControl "180+1"]
[EndTime "9:22:44 PDT"]
[Termination "tantaan won on time"]

1. e4 {[%clk 0:03:00.9]} 1... Nc6 {[%clk 0:02:51.4]} 2. d4 {[%clk 0:02:57.6]}
2... d5 {[%clk 0:02:51.4]} 3. exd5 {[%clk 0:02:50.2]} 3... Qxd5 {[%clk
0:02:52.3]} 4. Nf3 {[%clk 0:02:49.9]} 4... Bg4 {[%clk 0:02:48.9]} 5. Be2 {[%clk
0:02:50.2]} 5... O-O-O {[%clk 0:02:47.6]} 6. c3 {[%clk 0:02:46.7]} 6... e5
{[%clk 0:02:47.2]} 7. h3 {[%clk 0:02:42]} 7... Bh5 {[%clk 0:02:42.8]} 8. c4
{[%clk 0:02:31.3]} 8... Qa5+ {[%clk 0:02:36.9]} 9. Bd2 {[%clk 0:02:30.9]} 9...
Bb4 {[%clk 0:02:30.7]} 10. d5 {[%clk 0:02:29.6]} 10... Bxf3 {[%clk 0:02:28.3]}
11. Bxf3 {[%clk 0:02:27]} 11... Nd4 {[%clk 0:02:28.7]} 12. a3 {[%clk 0:02:16]}
12... Bxd2+ {[%clk 0:02:05.8]} 13. Nxd2 {[%clk 0:02:14.6]} 13... f5 {[%clk
0:01:54.7]} 14. b4 {[%clk 0:02:13]} 14... Qa6 {[%clk 0:01:50.9]} 15. O-O {[%clk
0:02:10.9]} 15... Nf6 {[%clk 0:01:50.1]} 16. Re1 {[%clk 0:02:01.2]} 16... Rhe8
{[%clk 0:01:48.2]} 17. Be2 {[%clk 0:02:01.5]} 17... c6 {[%clk 0:01:44]} 18. b5
{[%clk 0:01:43.9]} 18... cxb5 {[%clk 0:01:33.3]} 19. cxb5 {[%clk 0:01:43.8]}
19... Qd6 {[%clk 0:01:27.6]} 20. Qa4 {[%clk 0:01:09.2]} 20... Kb8 {[%clk
0:01:24.2]} 21. Bc4 {[%clk 0:01:07.5]} 21... Nxd5 {[%clk 0:01:21.2]} 22. Bxd5
{[%clk 0:01:05.8]} 22... Qxd5 {[%clk 0:01:21.2]} 23. b6 {[%clk 0:01:03.8]} 23...
a6 {[%clk 0:01:15.7]} 24. Nc4 {[%clk 0:01:01.5]} 24... Qb5 {[%clk 0:01:10.1]}
25. Qxb5 {[%clk 0:00:50.9]} 25... axb5 {[%clk 0:01:11]} 26. Nxe5 {[%clk
0:00:50.7]} 26... Nc2 {[%clk 0:01:10.8]} 27. Nd7+ {[%clk 0:00:50.5]} 27... Kc8
{[%clk 0:01:11]} 28. Rxe8 {[%clk 0:00:47.8]} 28... Rxe8 {[%clk 0:01:11.9]} 29.
Rc1 {[%clk 0:00:46.8]} 29... Kxd7 {[%clk 0:01:06]} 30. Rxc2 {[%clk 0:00:47]}
30... Rc8 {[%clk 0:01:06.1]} 31. Rd2+ {[%clk 0:00:23.6]} 31... Kc6 {[%clk
0:01:05.4]} 32. Rc2+ {[%clk 0:00:23.8]} 32... Kd7 {[%clk 0:01:04.6]} 33. Rd2+
{[%clk 0:00:24.5]} 33... Ke7 {[%clk 0:01:04.2]} 34. Rd5 {[%clk 0:00:23.1]} 34...
g6 {[%clk 0:00:50.4]} 35. Rxb5 {[%clk 0:00:22.9]} 35... Rc1+ {[%clk 0:00:50.6]}
36. Kh2 {[%clk 0:00:23.1]} 36... Ra1 {[%clk 0:00:50.6]} 37. Rc5 {[%clk
0:00:21.9]} 37... Rd1 {[%clk 0:00:36.2]} 38. a4 {[%clk 0:00:20.4]} 38... Rd7
{[%clk 0:00:29]} 39. a5 {[%clk 0:00:20.2]} 39... Kd6 {[%clk 0:00:29]} 40. Rc3
{[%clk 0:00:19.8]} 40... Re7 {[%clk 0:00:28.6]} 41. Kg3 {[%clk 0:00:19.9]} 41...
Re5 {[%clk 0:00:23.4]} 42. Ra3 {[%clk 0:00:18.4]} 42... Kc6 {[%clk 0:00:16.7]}
43. Kf4 {[%clk 0:00:17.9]} 43... Re4+ {[%clk 0:00:16.2]} 44. Kg5 {[%clk
0:00:18.3]} 44... Kb5 {[%clk 0:00:11]} 45. a6 {[%clk 0:00:15.8]} 45... Re8
{[%clk 0:00:04.3]} 46. a7 {[%clk 0:00:16.1]} 46... Ra8 {[%clk 0:00:04.6]} 47.
Rb3+ {[%clk 0:00:16.6]} 47... Kc4 {[%clk 0:00:04.3]} 48. Rb1 {[%clk 0:00:16.5]}
48... Kc5 {[%clk 0:00:03.8]} 49. Kh6 {[%clk 0:00:16.6]} 49... Kc6 {[%clk
0:00:03.8]} 50. Kxh7 {[%clk 0:00:16.1]} 50... f4 {[%clk 0:00:03.4]} 51. Kxg6
{[%clk 0:00:16.1]} 51... f3 {[%clk 0:00:04]} 52. gxf3 {[%clk 0:00:16.3]} 52...
Kd5 {[%clk 0:00:03.8]} 53. Kf5 {[%clk 0:00:16.3]} 53... Kd4 {[%clk 0:00:04.7]}
54. Rd1+ {[%clk 0:00:15.8]} 1-0

[Event "Early-Titled-Tuesday-Blitz-May-07-2024"]
[Site "Chess.com"]
[Date "2024.05.07"]
[Round "7"]
[White "Smiechu"]
[Black "wild3000"]
[Result "1-0"]
[WhiteElo "2398"]
[BlackElo "2508"]
[TimeControl "180+1"]
[EndTime "9:22:51 PDT"]
[Termination "Smiechu won by resignation"]

1. e4 {[%clk 0:03:00.9]} 1... a6 {[%clk 0:02:59.7]} 2. d4 {[%clk 0:03:00.3]}
2... e6 {[%clk 0:02:59.3]} 3. Nc3 {[%clk 0:02:59.8]} 3... b5 {[%clk 0:02:59.4]}
4. Nf3 {[%clk 0:02:58.4]} 4... Bb7 {[%clk 0:02:59.4]} 5. Bd3 {[%clk 0:02:58.3]}
5... Nf6 {[%clk 0:02:58.9]} 6. Qe2 {[%clk 0:02:57.2]} 6... c5 {[%clk 0:02:59.1]}
7. dxc5 {[%clk 0:02:54.8]} 7... Bxc5 {[%clk 0:02:58.6]} 8. Be3 {[%clk
0:02:54.8]} 8... Bxe3 {[%clk 0:02:57.8]} 9. Qxe3 {[%clk 0:02:55]} 9... O-O
{[%clk 0:02:54.5]} 10. O-O-O {[%clk 0:02:53.7]} 10... b4 {[%clk 0:02:53.8]} 11.
Ne2 {[%clk 0:02:52.2]} 11... d5 {[%clk 0:02:53.8]} 12. e5 {[%clk 0:02:47.1]}
12... Nfd7 {[%clk 0:02:52.5]} 13. Ng5 {[%clk 0:02:42.8]} 13... h6 {[%clk
0:02:51.6]} 14. h4 {[%clk 0:02:42.6]} 14... Nc6 {[%clk 0:02:48]} 15. f4 {[%clk
0:02:36.8]} 15... Qb6 {[%clk 0:02:38.4]} 16. Qd2 {[%clk 0:02:27.4]} 16... a5
{[%clk 0:02:31.7]} 17. g4 {[%clk 0:02:27.1]} 17... a4 {[%clk 0:02:25]} 18. Nh7
{[%clk 0:02:22.8]} 18... b3 {[%clk 0:02:20.4]} 19. a3 {[%clk 0:02:17.7]} 19...
bxc2 {[%clk 0:02:17.7]} 20. Bxc2 {[%clk 0:02:17.7]} 20... Ba6 {[%clk 0:02:00]}
21. Nxf8 {[%clk 0:02:13.1]} 21... Kxf8 {[%clk 0:01:59.6]} 22. Nd4 {[%clk
0:02:07.6]} 22... Na5 {[%clk 0:01:45.7]} 23. Qb4+ {[%clk 0:02:03.2]} 23... Qxb4
{[%clk 0:01:30.2]} 24. axb4 {[%clk 0:02:04.1]} 24... Nc4 {[%clk 0:01:30.5]} 25.
Bxa4 {[%clk 0:01:58]} 25... Ndb6 {[%clk 0:01:30.5]} 26. Bc6 {[%clk 0:01:56.3]}
26... Rb8 {[%clk 0:01:29.6]} 27. b5 {[%clk 0:01:55]} 27... Bc8 {[%clk
0:01:28.2]} 28. b3 {[%clk 0:01:50]} 28... Ne3 {[%clk 0:01:25.4]} 29. Rd2 {[%clk
0:01:39.4]} 29... Nxg4 {[%clk 0:01:24.9]} 30. Ra2 {[%clk 0:01:38.6]} 30... h5
{[%clk 0:01:21.9]} 31. Ra7 {[%clk 0:01:36.6]} 31... Nh6 {[%clk 0:01:18.4]} 32.
Kd2 {[%clk 0:01:17.9]} 32... Ng4 {[%clk 0:01:16.4]} 33. Rc1 {[%clk 0:01:05.7]}
33... Nf2 {[%clk 0:01:15.9]} 34. Ke3 {[%clk 0:01:00.3]} 34... Ng4+ {[%clk
0:01:15.5]} 35. Kf3 {[%clk 0:00:55.5]} 35... f6 {[%clk 0:01:10.9]} 36. exf6
{[%clk 0:00:42]} 36... Nxf6 {[%clk 0:01:09.8]} 37. Re1 {[%clk 0:00:38.9]} 37...
Ne4 {[%clk 0:01:09.4]} 38. Rxe4 {[%clk 0:00:36.3]} 38... dxe4+ {[%clk
0:01:09.3]} 39. Kxe4 {[%clk 0:00:36.6]} 39... Nd5 {[%clk 0:00:56.8]} 40. Bxd5
{[%clk 0:00:24]} 40... exd5+ {[%clk 0:00:57.7]} 41. Kxd5 {[%clk 0:00:24.5]}
41... Bh3 {[%clk 0:00:54.6]} 42. Kc5 {[%clk 0:00:24]} 42... Rc8+ {[%clk
0:00:45.6]} 43. Nc6 {[%clk 0:00:23.5]} 43... Bg2 {[%clk 0:00:45.7]} 44. Kd6
{[%clk 0:00:22.6]} 44... Bf3 {[%clk 0:00:39]} 45. Rc7 {[%clk 0:00:20.6]} 45...
Re8 {[%clk 0:00:32.7]} 46. b6 {[%clk 0:00:20.1]} 46... Re3 {[%clk 0:00:23.6]}
47. b7 {[%clk 0:00:19.7]} 47... Rd3+ {[%clk 0:00:18.6]} 48. Ke5 {[%clk
0:00:18.5]} 48... Re3+ {[%clk 0:00:17.5]} 49. Kd4 {[%clk 0:00:17.8]} 49... Re4+
{[%clk 0:00:17.9]} 50. Kd3 {[%clk 0:00:18]} 50... Re8 {[%clk 0:00:18.8]} 51.
b8=Q {[%clk 0:00:13]} 51... Be4+ {[%clk 0:00:18.1]} 52. Kd4 {[%clk 0:00:12.7]}
52... Rxb8 {[%clk 0:00:17.6]} 53. Nxb8 {[%clk 0:00:12.4]} 53... Bf5 {[%clk
0:00:17.4]} 54. Ke5 {[%clk 0:00:12.3]} 54... g6 {[%clk 0:00:17.4]} 55. Nc6
{[%clk 0:00:11.8]} 55... Ke8 {[%clk 0:00:17.3]} 56. Nd4 {[%clk 0:00:11.8]} 56...
Bb1 {[%clk 0:00:16.5]} 57. b4 {[%clk 0:00:12]} 57... Kd8 {[%clk 0:00:16.5]} 58.
Rg7 {[%clk 0:00:11.4]} 58... Kc8 {[%clk 0:00:15.8]} 59. b5 {[%clk 0:00:11.4]}
59... Kb8 {[%clk 0:00:15.8]} 60. b6 {[%clk 0:00:11.5]} 60... Bd3 {[%clk
0:00:13.6]} 61. Nc6+ {[%clk 0:00:11.3]} 1-0

[Event "Early-Titled-Tuesday-Blitz-May-07-2024"]
[Site "Chess.com"]
[Date "2024.05.07"]
[Round "7"]
[White "Artemiki"]
[Black "Yeritsyaan"]
[Result "0-1"]
[WhiteElo "2497"]
[BlackElo "2719"]
[TimeControl "180+1"]
[EndTime "9:22:52 PDT"]
[Termination "Yeritsyaan won on time"]

1. e4 {[%clk 0:02:57.6]} 1... g6 {[%clk 0:02:56.7]} 2. d4 {[%clk 0:02:57.1]}
2... Bg7 {[%clk 0:02:47.5]} 3. Nc3 {[%clk 0:02:56.4]} 3... c6 {[%clk 0:02:44.6]}
4. f4 {[%clk 0:02:51.2]} 4... d5 {[%clk 0:02:43.3]} 5. e5 {[%clk 0:02:49.1]}
5... Nh6 {[%clk 0:02:41.4]} 6. Nf3 {[%clk 0:02:29.9]} 6... Bg4 {[%clk
0:02:27.4]} 7. h3 {[%clk 0:02:25.6]} 7... Bxf3 {[%clk 0:02:22.4]} 8. Qxf3 {[%clk
0:02:23.6]} 8... Nf5 {[%clk 0:02:19.8]} 9. Ne2 {[%clk 0:02:18.4]} 9... e6 {[%clk
0:02:16]} 10. g4 {[%clk 0:02:08.9]} 10... Nh4 {[%clk 0:02:10.8]} 11. Qg3 {[%clk
0:01:58.2]} 11... h5 {[%clk 0:02:05.7]} 12. Be3 {[%clk 0:01:51.1]} 12... Nd7
{[%clk 0:02:05]} 13. Bf2 {[%clk 0:01:42.9]} 13... Qb6 {[%clk 0:01:52.1]} 14.
O-O-O {[%clk 0:01:37.8]} 14... g5 {[%clk 0:01:32]} 15. fxg5 {[%clk 0:01:20.8]}
15... Ng6 {[%clk 0:01:30.5]} 16. gxh5 {[%clk 0:01:15.9]} 16... Rxh5 {[%clk
0:01:31.4]} 17. h4 {[%clk 0:01:09.6]} 17... O-O-O {[%clk 0:01:26.6]} 18. Qf3
{[%clk 0:01:03.2]} 18... Rh7 {[%clk 0:01:16.8]} 19. Qxf7 {[%clk 0:00:55.1]}
19... Ndf8 {[%clk 0:01:15]} 20. h5 {[%clk 0:00:45.2]} 20... Bh6 {[%clk
0:00:54.6]} 21. Qf6 {[%clk 0:00:40.4]} 21... Bg7 {[%clk 0:00:47.9]} 22. Qf3
{[%clk 0:00:35.5]} 22... Ne7 {[%clk 0:00:47.9]} 23. g6 {[%clk 0:00:33.1]} 23...
Rh8 {[%clk 0:00:43.4]} 24. Bh4 {[%clk 0:00:31.5]} 24... Re8 {[%clk 0:00:39.5]}
25. Bf6 {[%clk 0:00:29.5]} 25... Bh6+ {[%clk 0:00:37.8]} 26. Kb1 {[%clk
0:00:28.8]} 26... Rg8 {[%clk 0:00:38.4]} 27. Bh3 {[%clk 0:00:25]} 27... Kb8
{[%clk 0:00:33.7]} 28. Rhg1 {[%clk 0:00:22.8]} 28... Nf5 {[%clk 0:00:33.2]} 29.
Bxf5 {[%clk 0:00:21.5]} 29... exf5 {[%clk 0:00:34.1]} 30. Nf4 {[%clk 0:00:13.7]}
30... Nd7 {[%clk 0:00:28.5]} 31. g7 {[%clk 0:00:11]} 31... Qb4 {[%clk
0:00:22.4]} 32. c3 {[%clk 0:00:10.2]} 32... Qa4 {[%clk 0:00:22.9]} 33. b3 {[%clk
0:00:05.5]} 33... Qa5 {[%clk 0:00:21.9]} 34. Kb2 {[%clk 0:00:04.6]} 34... Nb6
{[%clk 0:00:18.4]} 35. Rg6 {[%clk 0:00:04]} 35... Bxf4 {[%clk 0:00:19]} 36. Qxf4
{[%clk 0:00:04.2]} 36... Qb5 {[%clk 0:00:19.7]} 37. e6+ {[%clk 0:00:02.7]} 37...
Ka8 {[%clk 0:00:19.6]} 38. e7 {[%clk 0:00:03.1]} 38... Nc4+ {[%clk 0:00:17.6]}
39. Ka1 {[%clk 0:00:02.8]} 39... Na3 {[%clk 0:00:17.6]} 40. Rg2 {[%clk
0:00:02.8]} 40... Qa5 {[%clk 0:00:17.3]} 41. Qe3 {[%clk 0:00:02.1]} 41... Nb5
{[%clk 0:00:16.2]} 42. Qd2 {[%clk 0:00:01.7]} 42... Nxc3 {[%clk 0:00:15.7]} 43.
h6 {[%clk 0:00:02.4]} 43... Qb5 {[%clk 0:00:10]} 44. h7 {[%clk 0:00:02.7]} 44...
Ne4 {[%clk 0:00:09.8]} 45. Qe2 {[%clk 0:00:02.5]} 45... Qb4 {[%clk 0:00:09.2]}
46. Qe1 {[%clk 0:00:02.2]} 46... Qa3 {[%clk 0:00:07]} 47. hxg8=Q {[%clk
0:00:01.8]} 47... Rxg8 {[%clk 0:00:07.9]} 48. Rc1 {[%clk 0:00:02.4]} 48... Nxf6
{[%clk 0:00:07.9]} 49. Qe5 {[%clk 0:00:02]} 49... Ne8 {[%clk 0:00:08.2]} 0-1

[Event "Early-Titled-Tuesday-Blitz-May-07-2024"]
[Site "Chess.com"]
[Date "2024.05.07"]
[Round "7"]
[White "stepanosinovsky"]
[Black "nuadvaga"]
[Result "0-1"]
[WhiteElo "2301"]
[BlackElo "2160"]
[TimeControl "180+1"]
[EndTime "9:22:55 PDT"]
[Termination "nuadvaga won on time"]

1. e4 {[%clk 0:03:00.9]} 1... e5 {[%clk 0:02:59.8]} 2. Nf3 {[%clk 0:03:01.1]}
2... Nc6 {[%clk 0:02:59.9]} 3. Bb5 {[%clk 0:03:01.8]} 3... f5 {[%clk 0:02:59.5]}
4. d3 {[%clk 0:02:56.1]} 4... a6 {[%clk 0:02:59.2]} 5. Ba4 {[%clk 0:02:54]} 5...
Bc5 {[%clk 0:02:57.9]} 6. O-O {[%clk 0:02:47.5]} 6... fxe4 {[%clk 0:02:53.7]} 7.
dxe4 {[%clk 0:02:47.2]} 7... d6 {[%clk 0:02:53.1]} 8. Nc3 {[%clk 0:02:43.2]}
8... Nf6 {[%clk 0:02:52.4]} 9. Bg5 {[%clk 0:02:34.1]} 9... Bg4 {[%clk
0:02:51.5]} 10. h3 {[%clk 0:02:31.2]} 10... Bh5 {[%clk 0:02:44.4]} 11. Nd5
{[%clk 0:02:14.1]} 11... O-O {[%clk 0:02:42.8]} 12. c3 {[%clk 0:01:57.6]} 12...
Kh8 {[%clk 0:02:40.2]} 13. b4 {[%clk 0:01:36.5]} 13... Ba7 {[%clk 0:02:38]} 14.
Qd3 {[%clk 0:01:16.3]} 14... Bxf3 {[%clk 0:01:51]} 15. Qxf3 {[%clk 0:01:15.3]}
15... Nxd5 {[%clk 0:01:50.4]} 16. Bxd8 {[%clk 0:01:15.2]} 16... Rxf3 {[%clk
0:01:50.1]} 17. exd5 {[%clk 0:01:13.2]} 17... Rxf2 {[%clk 0:01:45.7]} 18. Bxc7
{[%clk 0:00:20.1]} 18... Rf7+ {[%clk 0:01:31.3]} 19. Kh1 {[%clk 0:00:20.5]}
19... Rxc7 {[%clk 0:01:30.6]} 20. dxc6 {[%clk 0:00:21.1]} 20... bxc6 {[%clk
0:01:31]} 21. c4 {[%clk 0:00:20.8]} 21... Rb8 {[%clk 0:01:25.8]} 22. a3 {[%clk
0:00:19.9]} 22... Bd4 {[%clk 0:01:25.7]} 23. Rad1 {[%clk 0:00:18.4]} 23... g6
{[%clk 0:01:03.4]} 24. g3 {[%clk 0:00:18.5]} 24... Kg7 {[%clk 0:01:03.5]} 25.
Kg2 {[%clk 0:00:19]} 25... a5 {[%clk 0:01:02.2]} 26. b5 {[%clk 0:00:18.2]} 26...
cxb5 {[%clk 0:01:01.8]} 27. Bxb5 {[%clk 0:00:19.1]} 27... d5 {[%clk 0:00:59.9]}
28. a4 {[%clk 0:00:19.2]} 28... dxc4 {[%clk 0:00:59.8]} 29. Rc1 {[%clk
0:00:18.5]} 29... c3 {[%clk 0:00:59.7]} 30. Rc2 {[%clk 0:00:18.1]} 30... Rf8
{[%clk 0:00:57]} 31. Rxf8 {[%clk 0:00:14.4]} 31... Kxf8 {[%clk 0:00:57.9]} 32.
Kf3 {[%clk 0:00:14.9]} 32... Ke7 {[%clk 0:00:58.4]} 33. Ke4 {[%clk 0:00:15.1]}
33... Kd6 {[%clk 0:00:58.7]} 34. Rc1 {[%clk 0:00:13.3]} 34... Rf7 {[%clk
0:00:56.6]} 35. Bd3 {[%clk 0:00:11.6]} 35... Rf2 {[%clk 0:00:56.3]} 36. Rb1
{[%clk 0:00:11.7]} 36... Rg2 {[%clk 0:00:50.9]} 37. Kf3 {[%clk 0:00:11.3]} 37...
Rd2 {[%clk 0:00:51.4]} 38. Ke4 {[%clk 0:00:11]} 38... Rh2 {[%clk 0:00:50.4]} 39.
h4 {[%clk 0:00:10.7]} 39... h6 {[%clk 0:00:42.8]} 40. Rb8 {[%clk 0:00:10.1]}
40... g5 {[%clk 0:00:42.3]} 41. hxg5 {[%clk 0:00:09.8]} 41... hxg5 {[%clk
0:00:43.2]} 42. Rc8 {[%clk 0:00:10.1]} 42... Rg2 {[%clk 0:00:40.8]} 43. Kf3
{[%clk 0:00:10]} 43... Ra2 {[%clk 0:00:39]} 44. Rc4 {[%clk 0:00:08.8]} 44... Kd5
{[%clk 0:00:38.2]} 45. Rc8 {[%clk 0:00:05.9]} 45... Rf2+ {[%clk 0:00:38.2]} 46.
Kg4 {[%clk 0:00:06]} 46... Rd2 {[%clk 0:00:33.3]} 47. Bc4+ {[%clk 0:00:05.3]}
47... Kd6 {[%clk 0:00:33.1]} 48. Bb3 {[%clk 0:00:02.8]} 48... Rb2 {[%clk
0:00:31.5]} 49. Bg8 {[%clk 0:00:02]} 49... Rb4 {[%clk 0:00:10.1]} 50. Kxg5
{[%clk 0:00:01.8]} 50... Rxa4 {[%clk 0:00:09.7]} 51. Kf5 {[%clk 0:00:01.8]}
51... Ra1 {[%clk 0:00:08.6]} 52. g4 {[%clk 0:00:01.8]} 52... Rf1+ {[%clk
0:00:09.1]} 53. Ke4 {[%clk 0:00:02.2]} 53... Rf2 {[%clk 0:00:08.8]} 54. g5
{[%clk 0:00:01.7]} 54... Rg2 {[%clk 0:00:09.2]} 0-1

[Event "Early-Titled-Tuesday-Blitz-May-07-2024"]
[Site "Chess.com"]
[Date "2024.05.07"]
[Round "7"]
[White "Tsyhanchuk_Stanislav"]
[Black "GMT4114"]
[Result "0-1"]
[WhiteElo "2290"]
[BlackElo "1990"]
[TimeControl "180+1"]
[EndTime "9:22:56 PDT"]
[Termination "GMT4114 won by checkmate"]

1. e4 {[%clk 0:03:00.9]} 1... e6 {[%clk 0:03:00.1]} 2. d4 {[%clk 0:03:00.5]}
2... d5 {[%clk 0:03:00.6]} 3. Nc3 {[%clk 0:03:00.9]} 3... Bb4 {[%clk 0:02:59.8]}
4. e5 {[%clk 0:03:00.4]} 4... Qd7 {[%clk 0:03:00.3]} 5. a3 {[%clk 0:02:55.6]}
5... Bxc3+ {[%clk 0:02:59.3]} 6. bxc3 {[%clk 0:02:56.5]} 6... b6 {[%clk
0:03:00.2]} 7. h4 {[%clk 0:02:54.7]} 7... Ba6 {[%clk 0:02:46]} 8. Bxa6 {[%clk
0:02:51]} 8... Nxa6 {[%clk 0:02:46.9]} 9. Qg4 {[%clk 0:02:48.4]} 9... f5 {[%clk
0:02:41.1]} 10. exf6 {[%clk 0:02:41.3]} 10... Nxf6 {[%clk 0:02:39.9]} 11. Qe2
{[%clk 0:02:34.2]} 11... Nb8 {[%clk 0:02:39]} 12. Bg5 {[%clk 0:02:31.3]} 12...
Nc6 {[%clk 0:02:32.6]} 13. Nf3 {[%clk 0:02:29.1]} 13... Na5 {[%clk 0:02:23.6]}
14. Ne5 {[%clk 0:02:27.1]} 14... Qa4 {[%clk 0:02:19.2]} 15. O-O {[%clk
0:02:11.8]} 15... h5 {[%clk 0:01:44.9]} 16. Ng6 {[%clk 0:02:07.4]} 16... Rh7
{[%clk 0:01:38.5]} 17. Qxe6+ {[%clk 0:02:05.7]} 17... Kd8 {[%clk 0:01:33.7]} 18.
Bxf6+ {[%clk 0:02:04.8]} 18... gxf6 {[%clk 0:01:34.6]} 19. Qxf6+ {[%clk
0:02:05.1]} 19... Kc8 {[%clk 0:01:34.9]} 20. Rfe1 {[%clk 0:01:57.2]} 20... Kb7
{[%clk 0:01:32.1]} 21. Nf4 {[%clk 0:01:38.9]} 21... Qc4 {[%clk 0:01:15.1]} 22.
Qf5 {[%clk 0:01:34.5]} 22... Rg7 {[%clk 0:01:01.3]} 23. Qxd5+ {[%clk 0:01:31.4]}
23... Qxd5 {[%clk 0:01:01.3]} 24. Nxd5 {[%clk 0:01:32]} 24... Rag8 {[%clk
0:00:59.5]} 25. g3 {[%clk 0:01:31]} 25... Nc4 {[%clk 0:00:59.4]} 26. Re7 {[%clk
0:01:24.4]} 26... Kc6 {[%clk 0:00:55.5]} 27. Nb4+ {[%clk 0:01:16.6]} 27... Kd6
{[%clk 0:00:49.1]} 28. Rxg7 {[%clk 0:01:16.2]} 28... Rxg7 {[%clk 0:00:50]} 29.
Re1 {[%clk 0:01:15.4]} 29... Nxa3 {[%clk 0:00:45.3]} 30. Ra1 {[%clk 0:01:07.4]}
30... Nb5 {[%clk 0:00:40.5]} 31. c4 {[%clk 0:00:49.3]} 31... Nxd4 {[%clk
0:00:38.4]} 32. Rd1 {[%clk 0:00:48.5]} 32... Kc5 {[%clk 0:00:31.1]} 33. c3
{[%clk 0:00:34.8]} 33... Ne2+ {[%clk 0:00:29.7]} 34. Kf1 {[%clk 0:00:31.9]}
34... Nxc3 {[%clk 0:00:30.6]} 35. Nd3+ {[%clk 0:00:26]} 35... Kxc4 {[%clk
0:00:28.5]} 36. Ne5+ {[%clk 0:00:22.1]} 36... Kb3 {[%clk 0:00:20.5]} 37. Rd3
{[%clk 0:00:18.9]} 37... Kc2 {[%clk 0:00:19]} 38. Re3 {[%clk 0:00:15.1]} 38...
a5 {[%clk 0:00:18.5]} 39. Nc4 {[%clk 0:00:12.3]} 39... a4 {[%clk 0:00:17.7]} 40.
Ke1 {[%clk 0:00:09.2]} 40... a3 {[%clk 0:00:17.3]} 41. Nxa3+ {[%clk 0:00:08.5]}
41... Kb3 {[%clk 0:00:14.7]} 42. Kd2 {[%clk 0:00:03.1]} 42... Rd7+ {[%clk
0:00:12.1]} 43. Kc1 {[%clk 0:00:02]} 43... Kxa3 {[%clk 0:00:11.5]} 44. Rxc3+
{[%clk 0:00:02.3]} 44... Kb4 {[%clk 0:00:11.6]} 45. Rf3 {[%clk 0:00:02.9]} 45...
Rd5 {[%clk 0:00:10.9]} 46. Rf7 {[%clk 0:00:02.6]} 46... c5 {[%clk 0:00:10.9]}
47. Rh7 {[%clk 0:00:01.6]} 47... c4 {[%clk 0:00:10.4]} 48. f4 {[%clk 0:00:01.8]}
48... c3 {[%clk 0:00:10.5]} 49. Rb7 {[%clk 0:00:02.4]} 49... b5 {[%clk
0:00:10.1]} 50. Kc2 {[%clk 0:00:02.6]} 50... Rd2+ {[%clk 0:00:07.3]} 51. Kc1
{[%clk 0:00:03.3]} 51... Kc4 {[%clk 0:00:07]} 52. Rc7+ {[%clk 0:00:03.4]} 52...
Kb3 {[%clk 0:00:07.2]} 53. Rh7 {[%clk 0:00:02.7]} 53... Rg2 {[%clk 0:00:05.7]}
54. Rxh5 {[%clk 0:00:02.3]} 54... Rg1# {[%clk 0:00:05.9]} 0-1